bitfinex/quotes_ETHUSD_20260203
["timestamp","ask_amount","ask_price","bid_price","bid_amount"]
[1770100707959,0.92430364,2325.7,2325.1,0.001]
[1770100708141,2.00198465,2325.7,2325.1,0.001]
[1770100710651,12.82019093,2325.5,2324.9,0.001]
[1770100710845,12.82019093,2325.3,2324.9,0.001]
[1770100711038,13.72119093,2325.3,2324.9,0.001]
[1770100711361,1.37211909,2325.2,2324.9,0.001]
[1770100711858,1.37211909,2325.2,2325.0,0.001]
[1770100712258,14.19231002,2325.2,2324.7,0.001]
[1770100712458,13.8954135,2325.1,2324.7,0.001]
[1770100712632,14.77702193,2325.0,2324.5,0.001]
[1770100713963,1.956831,2325.0,2324.5,0.001]
[1770100714257,1.07522257,2325.1,2324.5,0.001]
[1770100714456,13.8954135,2325.1,2324.5,0.001]
[1770100714656,13.8954135,2325.1,2324.3,0.001]
[1770100715446,13.8954135,2325.1,2324.1,0.0018]
[1770100715765,12.82019093,2324.9,2323.9,0.001]
[1770100716062,12.82019093,2324.7,2323.9,0.001]
[1770100716262,12.82019093,2324.5,2323.9,0.001]
[1770100716446,12.82019093,2324.5,2323.8,0.001]
[1770100717037,12.82019093,2324.3,2323.8,0.001]
[1770100717644,12.82019093,2324.3,2323.5,0.001]
[1770100717976,12.82019093,2324.1,2323.4,0.0008]
[1770100718147,12.82019093,2323.9,2322.9,1.07623584]
[1770100718864,0.901,2323.9,2323.2,1.07609812]
[1770100719180,1.97678237,2323.9,2323.1,4.3045864]
[1770100719553,1.07578237,2323.9,2323.1,1.07614825]
[1770100719755,1.07578237,2323.9,2323.2,1.74403477]
[1770100720092,1.07578237,2323.9,2322.8,4.30502354]
[1770100720385,1.07578237,2323.9,2322.9,1.07620421]
[1770100721155,13.8959733,2323.9,2322.8,4.30502354]
[1770100721589,13.8959733,2323.9,2322.8,16.36451917]
[1770100721772,13.89590362,2324.1,2322.9,13.80365627]
[1770100721975,0.902,2324.0,2322.9,13.80365627]
[1770100723161,0.902,2324.0,2322.8,1.07628723]
[1770100723162,13.72219093,2324.0,2322.8,1.07628723]
[1770100723364,13.89596871,2323.9,2322.7,16.36560024]
[1770100723549,13.89596871,2323.9,2322.8,12.05949563]
[1770100723956,13.89596871,2323.9,2323.1,0.001]
[1770100724280,14.73029891,2323.8,2323.1,0.001]
[1770100724984,1.91010798,2323.8,2323.1,0.001]
[1770100725158,1.07577778,2323.9,2323.1,0.001]
[1770100726554,13.89596871,2323.9,2323.1,0.001]
[1770100726954,1.07577778,2323.9,2323.1,0.001]
[1770100728969,1.07568521,2324.1,2323.1,12.06049563]
[1770100729388,2.46524215,2324.2,2323.1,12.06049563]
[1770100729585,2.46524215,2324.2,2323.2,13.26554519]
[1770100730614,14.27945408,2324.2,2323.2,1.20604956]
[1770100730803,14.27945408,2324.2,2323.1,0.001]
[1770100732309,1.38698196,2324.8,2323.2,11.71408812]
[1770100732475,1.0764159,2324.9,2323.8,11.7271282]
[1770100732676,13.0808123,2324.9,2323.5,11.71408812]
[1770100734101,12.01743648,2324.7,2323.3,11.71408812]
[1770100734305,3.1805015,2324.6,2323.4,13.96150622]
[1770100737285,12.0043964,2324.5,2323.4,13.96150622]
[1770100738093,3.1805015,2324.6,2323.3,0.001]
[1770100738094,12.01743648,2324.2,2323.3,0.001]
[1770100738301,12.0043964,2324.0,2323.3,0.001]
[1770100738903,1.07568521,2324.1,2323.3,0.001]
[1770100739290,0.92114688,2324.0,2323.3,0.001]
[1770100739507,1.40012285,2323.9,2323.3,0.001]
[1770100740212,13.40451925,2323.9,2323.3,0.001]
[1770100741087,1.07582408,2323.8,2323.3,0.001]
[1770100741291,0.92148428,2323.7,2323.3,0.001]
[1770100743515,1.07591668,2323.6,2323.3,0.001]
[1770100743814,1.55158736,2323.5,2323.3,0.001]
[1770100744030,0.92148428,2323.4,2323.3,0.001]
[1770100744519,0.92148428,2323.4,2323.0,0.001]
[1770100744880,0.902,2323.3,2323.0,0.001]
[1770100745111,0.92148428,2323.2,2323.0,0.001]
[1770100745631,1.99762097,2323.2,2322.7,0.0008]
[1770100745783,0.92148428,2323.1,2322.7,0.0008]
[1770100745984,0.92148428,2323.1,2322.1,11.71508812]
[1770100746194,12.92588068,2323.0,2322.1,1.07757918]
[1770100746489,0.92148428,2322.9,2322.1,1.07757918]
[1770100746704,1.29258807,2322.8,2321.9,0.001]
[1770100747015,1.82348428,2322.7,2321.9,0.001]
[1770100747180,0.92148428,2322.6,2321.9,0.001]
[1770100747380,0.92148428,2322.6,2322.0,1.07665031]
[1770100747616,1.99786657,2322.6,2321.9,0.001]
[1770100747790,2.45380468,2322.5,2321.9,0.001]
[1770100747990,0.92148428,2322.4,2321.9,0.001]
[1770100748228,1.5323204,2322.5,2321.9,0.001]
[1770100748399,0.902,2322.5,2321.9,0.001]
[1770100748925,1.97839537,2322.6,2321.9,0.001]
[1770100749126,0.92132813,2322.5,2321.9,0.001]
[1770100749410,1.97839537,2322.6,2321.9,0.001]
[1770100749580,0.92077194,2322.5,2322.1,0.001]
[1770100749911,0.63025116,2322.5,2322.1,0.001]
[1770100750518,0.902,2322.6,2322.1,0.001]
[1770100750722,1.97828803,2322.8,2322.1,0.001]
[1770100750898,0.92032117,2322.7,2322.1,0.001]
[1770100751086,0.92032117,2322.6,2322.1,0.001]
[1770100751287,1.97828803,2322.8,2322.1,0.001]
[1770100751512,2.62459839,2322.7,2322.1,0.001]
[1770100751811,0.91993012,2322.6,2322.1,0.001]
[1770100752020,2.60666827,2322.7,2322.1,0.001]
[1770100752514,0.902,2322.7,2322.1,0.001]
[1770100752689,2.998075,2323.2,2322.2,11.71408812]
[1770100752889,0.91995543,2323.1,2322.2,11.71408812]
[1770100753094,0.91995543,2323.0,2322.2,11.71408812]
[1770100753294,1.97923441,2323.2,2322.2,11.71408812]
[1770100753495,0.91998977,2323.1,2322.2,11.71408812]
[1770100753716,0.91999378,2323.0,2322.3,1.07651896]
[1770100753913,1.97923441,2323.2,2322.3,2.78629376]
[1770100754088,0.91999163,2323.1,2322.3,2.78629376]
[1770100754288,0.91999163,2323.0,2322.3,2.78629376]
[1770100754493,1.97923441,2323.2,2322.3,2.78629376]
[1770100754790,0.0011,2323.2,2322.4,11.71408812]
[1770100755101,0.0011,2323.2,2322.5,1.45003819]
[1770100755102,1.07720324,2323.2,2322.5,1.45003819]
[1770100755302,1.07720324,2323.2,2322.3,2.78629376]
[1770100755702,1.07720324,2323.2,2322.3,14.50038188]
[1770100758912,0.0011,2323.2,2322.3,14.50038188]
[1770100762903,0.0011,2323.2,2322.3,14.50138188]
[1770100769243,0.92458767,2323.1,2322.3,14.50138188]
[1770100769421,0.0011,2323.2,2322.5,12.81839936]
[1770100769624,0.92460518,2323.1,2322.5,12.81839936]
[1770100769825,0.0011,2323.2,2322.5,12.81839936]
[1770100770024,0.9246016,2323.1,2322.5,12.81839936]
[1770100770254,0.0011,2323.2,2322.5,12.81839936]
[1770100770533,0.92464928,2323.1,2322.6,1.51521672]
[1770100770737,0.0011,2323.2,2322.6,1.51521672]
[1770100770945,0.9246484,2323.1,2322.5,1.07642626]
[1770100771242,0.0011,2323.2,2322.5,1.07642626]
[1770100771543,0.92483055,2323.1,2322.5,1.07642626]
[1770100771741,0.0011,2323.2,2322.5,1.07642626]
[1770100771942,0.92508795,2323.1,2322.5,1.07642626]
[1770100772127,0.0011,2323.2,2322.5,3.4076138]
[1770100772322,0.92521518,2323.1,2322.4,1.07643789]
[1770100772533,0.92521518,2323.0,2322.4,1.07643789]
[1770100772847,0.92521518,2322.9,2322.4,1.07643789]
[1770100773018,13.93120929,2323.2,2322.4,1.07643789]
[1770100773339,13.93020171,2323.0,2322.3,0.001]
[1770100773539,0.92529092,2322.9,2322.4,1.07647062]
[1770100774115,1.39312093,2323.1,2322.4,12.81844372]
[1770100774317,0.925703,2323.0,2322.4,12.81844372]
[1770100774546,0.925703,2322.9,2322.4,12.81844372]
[1770100774748,0.0011,2323.2,2322.4,12.81844372]
[1770100775043,0.92574667,2323.1,2322.4,12.81844372]
[1770100775245,0.92684667,2323.0,2322.4,12.81844372]
[1770100775431,0.92574667,2322.9,2322.5,1.71254961]
[1770100775632,0.92574667,2322.9,2322.5,2.78893247]
[1770100777661,0.92574667,2322.9,2322.4,1.07645312]
[1770100777825,0.92574667,2322.9,2322.3,0.001]
[1770100778254,0.92574667,2322.8,2322.3,0.001]
[1770100778449,0.92574667,2322.7,2322.3,0.001]
[1770100778659,13.93130225,2323.0,2322.3,0.001]
[1770100778860,15.60417614,2322.9,2322.1,1.07759926]
[1770100779154,1.82857927,2322.8,2322.1,1.07759926]
[1770100779450,0.92657927,2322.7,2322.1,1.07759926]
[1770100779650,0.92657927,2322.6,2322.1,0.001]
[1770100779860,2.00300553,2322.5,2322.1,0.001]
[1770100780050,0.92657927,2322.4,2322.1,0.001]
[1770100780749,0.92657927,2322.3,2322.1,0.001]
[1770100781067,13.93038953,2322.6,2322.1,0.001]
[1770100781230,0.92681906,2322.5,2322.1,0.001]
[1770100781550,0.92681906,2322.4,2322.1,0.001]
[1770100781752,0.92681906,2322.3,2322.1,0.001]
[1770100781960,1.07636274,2322.7,2322.1,0.001]
[1770100782256,0.92684568,2322.6,2322.1,0.001]
[1770100782462,0.92684568,2322.5,2322.1,0.001]
[1770100782633,0.92684568,2322.4,2322.1,0.001]
[1770100782831,3.17248097,2322.7,2322.1,0.001]
[1770100782832,0.92684568,2322.3,2322.1,0.001]
[1770100783055,16.02648811,2322.7,2322.1,0.001]
[1770100783360,15.90408918,2322.6,2322.1,0.001]
[1770100783556,0.92671096,2322.5,2322.1,0.001]
[1770100783856,0.92671096,2322.4,2322.1,0.001]
[1770100784025,0.92671096,2322.3,2322.1,0.001]
[1770100784360,1.07643531,2322.5,2322.1,0.001]
[1770100784561,2.53167606,2322.4,2322.1,0.001]
[1770100784730,0.92629471,2322.3,2322.1,0.001]
[1770100784931,1.60538135,2322.4,2322.1,0.001]
[1770100785159,1.60538135,2322.4,2321.8,0.001]
[1770100785160,0.92626365,2322.3,2321.8,0.001]
[1770100785331,0.92626365,2322.2,2321.8,0.001]
[1770100785701,0.92585512,2322.1,2321.8,0.001]
[1770100785868,17.1595712,2322.6,2321.8,0.001]
[1770100786162,15.92625818,2322.5,2321.8,0.001]
[1770100786341,0.92572341,2322.4,2321.8,0.001]
[1770100786541,0.92572341,2322.3,2321.8,0.001]
[1770100786741,0.92572341,2322.2,2321.8,0.001]
[1770100786937,15.00053477,2322.5,2322.0,0.001]
[1770100787127,4.30556406,2322.6,2321.6,0.001]
[1770100787128,15.70994378,2322.4,2321.6,0.001]
[1770100787331,12.85400714,2322.2,2321.6,0.001]
[1770100787530,0.92532676,2322.1,2321.6,0.001]
[1770100787765,0.92532676,2322.0,2321.6,0.001]
[1770100787953,0.92532676,2322.0,2321.1,1.07807552]
[1770100787954,13.77925163,2321.9,2321.1,1.07807552]
[1770100788155,15.2650062,2321.8,2321.1,1.07807552]
[1770100788461,14.33959974,2321.8,2321.1,0.001]
[1770100788831,0.92495635,2321.7,2321.1,0.001]
[1770100789032,14.33959974,2321.8,2321.1,0.001]
[1770100789745,13.77835676,2321.7,2321.1,0.001]
[1770100789966,2.45074456,2321.6,2321.1,0.001]
[1770100790166,2.42839494,2321.6,2321.1,0.001]
[1770100790355,0.902,2321.7,2321.1,0.001]
[1770100791159,12.53368177,2321.9,2321.1,0.001]
[1770100791361,1.82554242,2321.8,2321.1,0.001]
[1770100791539,0.92354242,2321.7,2321.1,0.001]
[1770100793067,11.96256543,2322.3,2321.2,12.79674361]
[1770100793270,0.903,2322.2,2321.2,12.79674361]
[1770100793565,12.86556543,2322.2,2321.2,12.79674361]
[1770100793767,12.86556543,2322.2,2321.1,1.80927528]
[1770100794341,13.03917711,2322.1,2321.2,1.07702912]
[1770100794558,1.82486239,2322.0,2321.2,1.07702912]
[1770100795252,1.82486239,2322.0,2321.1,15.6830652]
[1770100795253,13.78742782,2322.0,2321.1,15.6830652]
[1770100796464,13.03926985,2321.9,2321.1,0.001]
[1770100796766,13.03926985,2321.9,2321.1,1.07807124]
[1770100797346,13.03926985,2321.9,2321.1,1.07807289]
[1770100797953,13.03926985,2321.9,2321.1,0.001]
[1770100798193,11.96256543,2321.7,2321.1,0.001]
[1770100798344,2.09925654,2321.6,2321.1,0.001]
[1770100798741,0.903,2321.6,2321.1,0.001]
[1770100798946,0.903,2321.8,2321.1,12.79774361]
[1770100799471,1.07671801,2321.9,2321.1,12.79774361]
[1770100799771,1.82486239,2322.0,2321.1,12.79774361]
[1770100799973,0.903,2322.0,2321.1,12.79774361]
[1770100800178,0.903,2322.0,2321.2,14.07651797]
[1770100800348,0.903,2322.0,2321.3,0.001]
[1770100800673,0.0011,2321.7,2321.4,1.07693633]
[1770100801263,0.0011,2321.7,2321.3,13.87469256]
[1770100801975,0.0011,2321.7,2321.3,1.07794895]
[1770100802151,0.0011,2321.7,2321.3,0.001]
[1770100802548,11.96366543,2321.7,2321.3,0.001]
[1770100802873,11.96366543,2321.7,2321.0,0.001]
[1770100802874,13.03945537,2321.5,2321.0,0.001]
[1770100803255,1.07688994,2321.5,2321.0,0.001]
[1770100803448,1.07688994,2321.5,2320.9,0.001]
[1770100803980,1.97988994,2321.5,2320.9,0.001]
[1770100805068,0.91092905,2321.4,2320.9,0.001]
[1770100805270,0.0011,2321.7,2320.9,12.79774361]
[1770100805471,0.91131577,2321.6,2320.9,12.79774361]
[1770100805770,1.07789868,2321.7,2320.9,12.79774361]
[1770100805994,0.91152985,2321.6,2320.9,12.79774361]
[1770100806292,1.07789868,2321.7,2320.9,0.001]
[1770100806472,1.45071781,2321.6,2320.9,0.001]
[1770100806668,0.53849413,2321.6,2320.9,0.001]
[1770100806874,0.91219888,2321.5,2320.9,0.001]
[1770100807191,1.07698272,2321.3,2320.9,0.001]
[1770100807391,12.88780439,2321.2,2320.4,0.0008]
[1770100807693,14.36284703,2321.1,2320.4,0.0008]
[1770100807888,0.91219888,2321.0,2320.4,0.0008]
[1770100809568,1.07716833,2320.9,2320.4,0.0008]
[1770100810080,0.91242466,2320.8,2320.4,0.0008]
[1770100810283,1.81542466,2320.7,2320.4,0.0008]
[1770100810482,0.903,2320.7,2320.4,0.0008]
[1770100811091,0.91202889,2320.6,2320.4,0.0008]
[1770100811284,0.91218579,2320.5,2319.7,13.87526742]
[1770100811463,12.86556543,2320.7,2319.8,0.58452922]
[1770100811663,1.9889195,2320.6,2319.7,1.07852381]
[1770100811889,0.91161191,2320.5,2319.7,0.0008]
[1770100812109,13.03987302,2320.6,2319.7,0.0008]
[1770100812279,12.87409803,2320.5,2319.7,1.07852442]
[1770100812479,1.8145326,2320.4,2319.7,1.07852442]
[1770100812780,1.07730759,2320.6,2319.7,15.69388506]
[1770100813007,4.30923037,2320.7,2319.7,15.69388506]
[1770100813008,0.903,2320.5,2319.7,15.69388506]
[1770100814089,0.91108553,2320.4,2319.7,2.89714145]
[1770100814416,0.01304008,2320.9,2319.7,13.87526476]
[1770100814417,4.30874607,2320.9,2319.7,13.87526476]
[1770100814595,1.81402211,2320.8,2319.7,13.87526476]
[1770100814785,0.91102211,2320.7,2319.9,0.001]
[1770100815107,0.903,2320.8,2319.9,0.001]
[1770100815108,0.91102211,2320.6,2319.9,0.001]
[1770100815307,0.903,2320.8,2319.9,0.001]
[1770100815607,2.51074104,2320.7,2319.9,0.001]
[1770100815806,0.91098169,2320.6,2319.9,0.001]
[1770100817086,0.91098169,2320.6,2319.9,12.79774361]
[1770100817292,0.903,2320.7,2319.9,12.79774361]
[1770100817891,0.903,2320.7,2320.0,1.0775862]
[1770100818102,0.903,2320.7,2320.1,1.81856746]
[1770100819311,0.903,2320.8,2320.1,1.81856746]
[1770100820002,0.903,2320.8,2319.9,0.001]
[1770100820003,11.96256543,2320.5,2319.9,0.001]
[1770100820302,0.91149534,2320.4,2319.9,0.001]
[1770100820488,12.45014857,2320.4,2319.9,0.001]
[1770100820885,1.98028846,2320.7,2319.9,0.001]
[1770100821191,1.0772103,2320.9,2319.9,11.77080641]
[1770100821398,1.81417686,2320.8,2319.9,11.77080641]
[1770100821584,0.91117686,2320.7,2319.9,11.77080641]
[1770100821790,13.52826371,2321.3,2320.1,12.84734617]
[1770100822101,1.81430392,2321.2,2320.1,12.84734617]
[1770100822295,0.91130392,2321.1,2320.2,13.48555693]
[1770100822500,0.91130392,2321.0,2320.2,13.48555693]
[1770100822699,0.0011,2321.3,2320.2,13.48555693]
[1770100822898,0.0011,2321.3,2320.4,11.76980641]
[1770100823689,0.0011,2321.3,2320.6,11.76980641]
[1770100823927,0.0011,2321.5,2320.9,12.84697474]
[1770100824137,0.0011,2321.7,2320.9,12.84697474]
[1770100825282,0.0011,2321.7,2320.9,1.07716833]
[1770100825496,0.91209282,2321.6,2320.8,1.07720757]
[1770100825718,0.9120506,2321.5,2320.4,4.3094835]
[1770100825984,0.9120506,2321.4,2320.5,11.76980641]
[1770100826187,1.07791006,2321.7,2320.5,11.76980641]
[1770100826391,0.91222372,2321.6,2320.5,11.76980641]
[1770100826602,0.91222372,2321.5,2320.5,11.76980641]
[1770100826889,1.07791006,2321.7,2320.6,13.05452709]
[1770100827100,0.91222789,2321.6,2320.6,13.05452709]
[1770100827289,0.91222789,2321.5,2320.6,13.05452709]
[1770100827503,1.07791006,2321.7,2320.6,13.05452709]
[1770100827705,0.0011,2321.7,2320.8,11.76980641]
[1770100827904,0.0011,2321.7,2321.1,1.07707552]
[1770100828323,0.0011,2321.7,2321.1,12.84688193]
[1770100829402,0.0011,2321.4,2321.1,12.84688193]
[1770100830618,0.0011,2321.6,2321.1,12.84688193]
[1770100830851,0.0011,2322.5,2321.2,12.00337671]
[1770100831126,0.91257096,2322.4,2321.4,12.00337671]
[1770100831307,0.0011,2322.5,2321.4,12.00337671]
[1770100832320,0.0011,2322.5,2321.6,11.76980641]
[1770100834893,0.0011,2322.5,2321.7,1.07679717]
[1770100837223,12.45124857,2322.5,2321.6,1.07681477]
[1770100837417,1.24523486,2322.4,2321.6,1.07681477]
[1770100838917,0.0011,2322.5,2321.6,12.84662118]
[1770100839799,0.0011,2322.5,2321.6,1.07681477]
[1770100840715,0.0011,2322.5,2321.6,12.84662118]
[1770100841122,0.0011,2322.5,2321.6,1.07681477]
[1770100841998,0.0011,2322.5,2321.8,0.001]
[1770100842505,0.0011,2322.3,2321.8,0.001]
[1770100846141,0.0011,2322.3,2321.8,0.56285562]
[1770100847135,0.0011,2322.3,2321.8,0.001]
[1770100848537,12.45124857,2322.3,2321.8,0.001]
[1770100849938,0.0011,2322.3,2321.8,0.001]
[1770100850141,0.0011,2322.3,2321.8,11.80785516]
[1770100850336,0.0011,2322.3,2321.9,1.07670442]
[1770100850643,0.0011,2322.3,2322.0,1.71913773]
[1770100850849,0.0011,2322.5,2322.0,1.71913773]
[1770100851730,0.0011,2322.5,2321.9,1.07670442]
[1770100852412,0.0011,2322.5,2321.8,4.30781769]
[1770100853345,0.91503885,2322.4,2321.8,4.30781769]
[1770100853529,0.0011,2322.5,2321.8,4.30781769]
[1770100853735,0.91503887,2322.4,2321.8,4.30781769]
[1770100853931,0.0011,2322.5,2321.9,0.53845685]
[1770100854248,0.9150325,2322.4,2321.9,0.53845685]
[1770100854416,0.0011,2322.5,2322.0,1.07665805]
[1770100854745,0.91515278,2322.4,2322.0,1.07665805]
[1770100854910,0.0011,2322.5,2322.0,1.07665805]
[1770100855113,0.91515363,2322.4,2322.0,1.07665805]
[1770100855313,0.0011,2322.5,2322.0,1.07665805]
[1770100855543,0.91525726,2322.4,2322.0,1.07665805]
[1770100855842,12.98236158,2322.3,2321.8,0.001]
[1770100856023,14.28059774,2322.2,2321.8,0.001]
[1770100856222,0.91527988,2322.1,2321.8,0.001]
[1770100856538,0.91527988,2322.1,2322.0,0.001]
[1770100856837,1.99290003,2322.3,2322.0,0.001]
[1770100857014,0.91527988,2322.2,2322.0,0.001]
[1770100857217,0.91527988,2322.1,2322.0,0.001]
[1770100858544,0.91527988,2322.1,2322.0,1.344e-05]
[1770100859426,2.62179565,2322.1,2322.0,1.344e-05]
[1770100859622,1.54518397,2322.1,2322.0,1.344e-05]
[1770100859828,1.54518397,2322.1,2321.8,0.001]
[1770100860136,0.91527988,2322.0,2321.8,0.001]
[1770100860326,0.91527988,2321.9,2321.5,0.001]
[1770100860523,0.91527988,2321.8,2321.5,0.001]
[1770100860739,0.91527988,2321.7,2321.5,0.001]
[1770100860915,0.91527988,2321.6,2321.5,0.001]
[1770100861439,12.0670817,2322.0,2321.5,0.001]
[1770100861440,1.99200428,2321.9,2321.5,0.001]
[1770100861639,12.0670817,2321.7,2320.5,12.46395707]
[1770100861941,12.98236158,2321.6,2320.9,1.07716786]
[1770100862142,2.3089086,2321.8,2320.7,1.07722442]
[1770100862143,12.98236158,2321.5,2320.7,1.07722442]
[1770100862325,0.91527988,2321.4,2320.7,1.07722442]
[1770100862521,12.98236158,2321.3,2320.5,1.07732279]
[1770100862727,2.21351604,2321.2,2320.6,1.07727259]
[1770100862924,1.4059086,2321.8,2321.0,1.07712193]
[1770100863128,0.903,2321.7,2321.0,1.07712193]
[1770100863344,1.97984221,2321.7,2321.0,1.07712193]
[1770100863849,1.97984221,2321.7,2320.9,1.07716464]
[1770100865119,14.04692391,2321.7,2320.8,1.07818124]
[1770100865313,1.07688994,2321.5,2320.9,1.07716074]
[1770100866133,15.11995198,2321.6,2320.9,1.07716074]
[1770100868859,15.03434085,2321.6,2320.8,1.07818044]
[1770100869865,15.03434085,2321.6,2320.8,0.001]
[1770100870222,12.0670817,2321.4,2320.4,1.07736537]
[1770100870525,12.0670817,2321.2,2320.9,0.001]
[1770100870731,12.9700817,2321.1,2320.9,0.001]
[1770100871546,0.0011,2321.5,2320.9,0.001]
[1770100871742,0.903,2321.4,2320.9,0.001]
[1770100873290,1.97993896,2321.4,2320.9,0.001]
[1770100873979,0.903,2321.4,2320.9,0.001]
[1770100877362,1.97994482,2321.4,2320.9,0.001]
[1770100878060,0.903,2321.4,2320.9,0.001]
[1770100878264,1.97993897,2321.4,2320.9,0.001]
[1770100878968,1.07693897,2321.4,2320.9,0.001]
[1770100879268,0.903,2321.3,2320.9,0.001]
[1770100883197,0.903,2321.4,2320.9,0.001]
[1770100883392,0.903,2321.4,2321.1,0.001]
[1770100885495,1.07799229,2321.5,2321.1,0.001]
[1770100885814,0.0011,2321.5,2321.1,0.001]
[1770100885997,0.0011,2321.5,2321.1,1.18420886]
[1770100886592,12.55188727,2321.5,2321.1,0.001]
[1770100887176,0.0011,2321.5,2321.1,0.001]
[1770100889285,12.55188727,2321.5,2321.1,0.001]
[1770100891678,0.903,2321.4,2321.1,0.001]
[1770100893623,8.71194522,2321.4,2320.9,0.001]
[1770100893905,13.62781639,2321.2,2320.9,0.001]
[1770100894273,5.76115448,2321.3,2320.9,0.001]
[1770100894274,1.45317788,2321.3,2320.9,0.001]
[1770100894479,2.53017324,2321.3,2320.9,0.001]
[1770100894715,1.07699536,2321.3,2320.9,0.001]
[1770100895837,0.97699536,2321.3,2320.9,0.001]
[1770100895979,0.903,2321.3,2320.9,0.001]
[1770100896180,0.903,2321.3,2321.0,0.001]
[1770100896498,0.0011,2321.1,2321.0,0.001]
[1770100902416,1.07817552,2321.1,2320.8,0.001]
[1770100902814,0.0011,2321.1,2320.8,0.001]
[1770100906440,0.0011,2321.3,2320.9,11.83008863]
[1770100906822,0.0011,2321.3,2320.9,12.90724234]
[1770100907943,0.0011,2321.3,2320.8,2.36901537]
[1770100908118,0.0011,2321.3,2320.9,1.07716759]
[1770100908312,0.0011,2321.3,2321.0,12.06698889]
[1770100908509,0.0011,2321.3,2321.0,0.23690026]
[1770100909337,0.0011,2321.3,2320.9,1.07716759]
[1770100909841,0.0011,2321.3,2321.0,0.001]
[1770100910016,0.0011,2321.1,2321.0,0.001]
[1770100912951,0.0011,2321.5,2321.1,12.23995872]
[1770100913448,0.0011,2321.5,2321.0,0.001]
[1770100913625,0.0011,2321.5,2321.0,1.89288094]
[1770100914148,0.0011,2321.5,2321.0,2.96998324]
[1770100914444,0.0011,2321.5,2321.0,1.0781023]
[1770100916239,0.0011,2321.5,2321.1,12.23995872]
[1770100916550,0.0011,2321.7,2321.2,12.23995872]
[1770100918933,0.0011,2321.7,2321.3,1.07698272]
[1770100919129,0.0011,2321.7,2321.4,1.76250448]
[1770100919455,12.27337363,2322.2,2321.4,1.76250448]
[1770100920532,12.27337363,2322.2,2321.3,1.07698272]
[1770100921127,12.27337363,2322.0,2321.1,1.07707552]
[1770100921333,12.27337363,2322.0,2321.1,13.31703424]
[1770100921544,13.17637363,2322.0,2321.1,13.31703424]
[1770100922054,13.17637363,2322.0,2321.1,13.31803424]
[1770100922356,13.17747363,2322.0,2321.1,13.31803424]
[1770100922661,15.0335237,2322.0,2321.2,14.78324296]
[1770100922861,15.0335237,2322.0,2321.1,0.001]
[1770100923159,12.27337363,2321.8,2321.1,0.001]
[1770100925764,3.83683647,2322.0,2321.1,13.31803424]
[1770100925765,15.0335237,2322.0,2321.1,13.31803424]
[1770100925941,16.11018217,2322.0,2321.1,13.31803424]
[1770100926139,12.27337363,2321.9,2321.1,0.001]
[1770100926342,12.27337363,2321.7,2321.1,0.001]
[1770100926635,1.61101822,2321.8,2321.1,0.001]
[1770100927141,13.88439185,2321.8,2321.1,0.001]
[1770100928564,13.3501708,2321.7,2321.1,0.001]
[1770100933261,13.35017249,2321.7,2321.1,0.001]
[1770100933450,15.27698934,2321.7,2321.1,0.001]
[1770100935862,1.92681685,2321.7,2321.1,12.24095872]
[1770100936066,0.903,2321.7,2321.1,12.24095872]
[1770100936380,0.903,2321.7,2321.3,0.001]
[1770100936549,0.8541,2321.7,2321.3,0.001]
[1770100936995,0.0011,2321.8,2321.3,12.24095872]
[1770100937152,0.0011,2322.0,2321.5,12.23995872]
[1770100937348,0.0011,2322.0,2321.6,1.07684355]
[1770100937576,0.0011,2322.0,2321.6,13.31680227]
[1770100938581,1.07753473,2322.5,2321.6,13.31680227]
[1770100938582,0.0011,2322.5,2321.9,12.23995872]
[1770100938762,0.0011,2322.5,2321.8,7.80550607]
[1770100938763,0.0011,2322.5,2322.1,12.23995872]
[1770100939369,0.0011,2322.7,2322.1,12.23995872]
[1770100939572,0.0011,2322.7,2322.2,13.31652404]
[1770100940386,0.0011,2322.7,2322.0,2.00454648]
[1770100940565,0.0011,2322.7,2322.1,1.07660732]
[1770100940898,0.0011,2322.7,2322.0,3.08118033]
[1770100941055,0.0011,2322.7,2322.1,0.73879262]
[1770100941463,0.0011,2322.7,2322.1,1.8153969]
[1770100942694,0.0011,2322.7,2322.0,6.31116238]
[1770100942695,12.45605405,2322.7,2321.6,16.08071344]
[1770100942862,7.80550607,2322.5,2321.7,1.07679628]
[1770100943063,7.80550607,2322.5,2321.8,1.07674013]
[1770100943400,12.45605405,2322.7,2321.8,1.07674013]
[1770100943593,2.13648927,2322.6,2321.8,1.07674013]
[1770100943774,2.13648927,2322.6,2322.0,1.07664216]
[1770100943963,0.903,2322.5,2321.9,11.77346972]
[1770100947096,0.903,2322.5,2322.0,1.07665805]
[1770100948187,1.9794297,2322.5,2321.7,1.07676491]
[1770100948405,2.65466476,2322.4,2321.6,11.77346972]
[1770100948567,15.10961881,2322.4,2321.7,1.07677157]
[1770100949077,1.07651896,2322.3,2321.5,16.08095427]
[1770100949867,20.26046012,2322.2,2321.4,1.22409587]
[1770100950073,12.45495405,2321.9,2321.3,0.001]
[1770100950415,0.903,2321.8,2321.3,0.001]
[1770100950613,21.16346012,2321.8,2321.3,0.001]
[1770100950910,2.11634601,2321.7,2321.3,0.001]
[1770100951094,3.19318742,2321.7,2321.3,0.001]
[1770100951495,2.11634601,2321.7,2321.3,0.001]
[1770100951790,1.97975355,2321.8,2321.3,0.001]
[1770100952371,0.903,2321.8,2321.3,0.001]
[1770100952675,0.903,2321.8,2321.3,11.77446972]
[1770100953700,0.903,2321.8,2321.4,1.07693633]
[1770100953870,1.07758217,2322.4,2321.4,12.85040605]
[1770100954073,1.98058217,2322.4,2321.6,11.77346972]
[1770100954688,22.24104229,2322.4,2321.5,2.49647283]
[1770100954893,12.45495405,2322.3,2321.5,2.49647283]
[1770100955182,12.45495405,2322.3,2321.4,1.07693633]
[1770100956006,1.07656532,2322.2,2321.4,1.07693633]
[1770100956202,13.53151937,2322.2,2321.3,1.07794778]
[1770100956610,12.45495405,2322.2,2321.3,1.07794778]
[1770100956798,12.45495405,2322.2,2321.4,1.71594172]
[1770100958683,1.07760876,2322.4,2321.5,12.85035966]